bitfinex-derivatives/quotes_SOLF0:USTF0_20240907
["timestamp","ask_amount","ask_price","bid_price","bid_amount"]
[1725680293577,3.9859,125.48,125.45,9.81]
[1725680294579,9.81,125.51,125.45,9.81]
[1725680294776,9.81,125.5,125.4,5.22835615]
[1725680294978,3.9863,125.47,125.43,9.81]
[1725680295779,3.9863,125.47,125.43,13.797]
[1725680297183,3.9863,125.46,125.43,13.797]
[1725680300075,3.9863,125.46,125.43,9.81]
[1725680302582,3.98772027,125.46,125.4,1.2933]
[1725680302888,33.75,125.47,125.41,9.81]
[1725680303185,3.9872,125.43,125.41,9.81]
[1725680304384,33.75,125.44,125.39,1.2915]
[1725680304588,23.94,125.44,125.37,9.81]
[1725680304891,33.75,125.44,125.37,9.81]
[1725680305192,3.9884,125.4,125.38,9.81]
[1725680305792,3.92946502,125.44,125.38,9.81]
[1725680305992,33.75,125.45,125.38,9.81]
[1725680306183,0.76593552,125.44,125.38,9.81]
[1725680306384,3.9884,125.4,125.38,9.81]
[1725680311384,3.988,125.41,125.38,13.7988]
[1725680312191,3.9883,125.4,125.37,3.989]
[1725680312396,3.9883,125.4,125.38,9.81]
[1725680314597,3.988,125.41,125.39,9.81]
[1725680315993,33.75,125.44,125.35,4.0492]
[1725680316187,25.3512,125.44,125.37,9.81]
[1725680316498,15.24122847,125.44,125.38,9.81]
[1725680316695,3.988,125.41,125.38,9.81]
[1725680317593,163.94995788,125.47,125.4,9.81]
[1725680317901,0.76578608,125.46,125.41,9.81]
[1725680318092,3.9874,125.43,125.41,9.81]
[1725680320702,3.9876,125.42,125.41,9.81]
[1725680327819,37.75495002,125.45,125.4,9.81]
[1725680328007,0.7657969,125.44,125.38,13.7987]
[1725680328206,4.82108219,125.44,125.38,9.81]
[1725680328406,33.75,125.44,125.38,9.81]
[1725680328901,37.64573831,125.44,125.38,9.81]
[1725680330215,3.9884,125.4,125.38,9.81]
[1725680333221,3.9885,125.39,125.38,9.81]
[1725680335825,3.9889,125.38,125.37,9.81]
[1725680343529,39.01613831,125.44,125.36,1.3601]
[1725680343530,3.9891,125.37,125.36,1.3601]
[1725680350438,33.75,125.43,125.36,11.1701]
[1725680350940,3.9887,125.39,125.36,11.1701]
[1725680352426,3.9887,125.39,125.36,15.1595]
[1725680352826,3.9889,125.38,125.36,11.1701]
[1725680353036,5.26613831,125.44,125.32,9.81]
[1725680353037,4.01596059,125.37,125.32,9.81]
[1725680353237,33.75,125.39,125.32,9.81]
[1725680353635,9.81,125.39,125.34,9.81]
[1725680353830,9.81,125.41,125.34,9.81]
[1725680354244,3.9893,125.37,125.34,13.7999]
[1725680355137,3.9893,125.37,125.34,3.9899]
[1725680355341,23.94,125.43,125.35,9.81]
[1725680355543,0.76609884,125.42,125.37,9.81]
[1725680356242,23.94,125.43,125.37,9.81]
[1725680356546,3.9887,125.39,125.37,9.81]
[1725680358842,3.9887,125.39,125.37,13.7991]
[1725680359044,3.9883,125.4,125.37,13.7991]
[1725680359444,3.89573831,125.44,125.39,9.81]
[1725680359638,600.57127321,125.5,125.38,3.92125897]
[1725680359639,3.92883821,125.45,125.38,3.92125897]
[1725680359840,12.1417,125.49,125.42,9.81]
[1725680360149,0.76569392,125.46,125.42,9.81]
[1725680360350,28.73628081,125.46,125.41,9.81]
[1725680360550,3.9874,125.43,125.41,9.81]
[1725680361245,3.987,125.44,125.41,9.81]
[1725680362648,3.9874,125.43,125.39,4.1531]
[1725680362850,3.96793112,125.45,125.39,13.9631]
[1725680363053,33.76,125.46,125.39,13.9631]
[1725680363242,3.9877,125.42,125.39,13.9631]
[1725680364353,3.9877,125.42,125.39,17.9516]
[1725680366056,3.9879,125.41,125.39,11.1436]
[1725680370562,3.91129414,125.43,125.39,11.1436]
[1725680370757,33.76,125.45,125.39,11.1436]
[1725680371160,3.9882,125.41,125.39,11.1436]
[1725680374867,3.9882,125.4,125.39,11.1436]
[1725680377173,3.9882,125.4,125.38,9.81]
[1725680378966,39.03821899,125.45,125.36,1.3584]
[1725680379172,9.81,125.43,125.37,9.81]
[1725680380079,3.9883,125.4,125.37,13.799]
[1725680390488,3.9883,125.4,125.38,9.81]
[1725680399606,3.988,125.41,125.38,13.7988]
[1725680400207,3.97941899,125.45,125.4,9.81]
[1725680400408,7.25534885,125.46,125.42,9.81]
[1725680400904,3.9868,125.45,125.43,9.81]
[1725680401496,3.987,125.44,125.42,9.81]
[1725680401697,33.76,125.43,125.31,4.0624895]
[1725680401913,9.81,125.42,125.35,13.69653018]
[1725680402111,9.81,125.42,125.35,11.2098]
[1725680402306,3.9884,125.4,125.36,3.9893]
[1725680404106,33.76,125.4,125.32,2.7857]
[1725680404310,9.81,125.38,125.32,14.0187]
[1725680404609,13.85412242,125.38,125.32,14.0187]
[1725680405406,3.9893,125.37,125.33,3.9902]
[1725680406305,3.9895,125.36,125.32,18.0093]
[1725680408001,13.85412242,125.38,125.32,4.2087]
[1725680408203,9.81,125.36,125.27,2.48924556]
[1725680408507,9.81,125.37,125.3,9.81]
[1725680408702,9.81,125.38,125.32,9.81]
[1725680408904,13.8196598,125.38,125.32,9.81]
[1725680409511,3.9898,125.35,125.32,9.81]
[1725680410214,13.8196598,125.38,125.33,9.81]
[1725680410215,3.9896,125.36,125.33,9.81]
[1725680412107,23.95,125.44,125.35,9.81]
[1725680412316,0.76632592,125.43,125.38,9.81]
[1725680412511,12.0626,125.45,125.38,9.81]
[1725680412712,0.76593592,125.44,125.38,13.7985]
[1725680413313,3.9881,125.41,125.38,9.81]
[1725680419516,3.9881,125.41,125.38,13.7988]
[1725680425821,33.76,125.43,125.32,3.9346]
[1725680426026,33.76,125.43,125.36,9.81]
[1725680426221,3.9887,125.39,125.36,13.7994]
[1725680427513,3.9887,125.39,125.32,3.9346]
[1725680427514,3.9884,125.4,125.38,9.81]
[1725680427718,26.2025,125.45,125.38,9.81]
[1725680427919,0.76585421,125.44,125.39,9.81]
[1725680428322,1.2926,125.45,125.39,9.81]
[1725680428622,3.9881,125.41,125.38,13.7986]
[1725680429927,9.81,125.44,125.38,9.81]
[1725680430127,34.52595554,125.43,125.37,3.989]
[1725680430324,33.76,125.43,125.37,3.989]
[1725680431125,3.9884,125.4,125.37,3.989]
[1725680432827,3.9884,125.4,125.38,9.81]
[1725680435934,3.9885,125.39,125.38,9.81]
[1725680439233,156.93247331,125.45,125.38,11.1616]
[1725680439529,156.93247331,125.45,125.39,9.81]
[1725680439926,3.9879,125.41,125.39,9.81]
[1725680441427,33.76,125.44,125.38,1.3516]
[1725680441633,33.76,125.4,125.33,2.48778502]
[1725680441828,33.76,125.4,125.32,3.9687]
[1725680442040,3.99,125.35,125.32,13.7787]
[1725680442637,3.99,125.35,125.32,17.7692]
[1725680445642,3.9896,125.36,125.32,17.7692]
[1725680446437,7.92702446,125.36,125.32,17.7692]
[1725680446843,3.93742446,125.36,125.32,1.3474]
[1725680447047,9.81,125.37,125.3,9.81]
[1725680447442,3.9903,125.34,125.3,13.8012]
[1725680448650,3.9903,125.34,125.31,9.81]
[1725680449055,3.9903,125.34,125.31,13.801]
[1725680453357,3.9903,125.34,125.32,9.81]
[1725680453558,3.9903,125.34,125.32,11.1669]
[1725680456665,3.9899,125.35,125.32,11.1669]
[1725680458664,3.9899,125.35,125.32,15.1576]
[1725680461162,3.9902,125.34,125.32,1.3569]
[1725680464471,3.90093167,125.35,125.32,1.3569]
[1725680464664,9.81,125.38,125.32,1.3569]
[1725680464964,13.71971306,125.38,125.32,1.3569]
[1725680465665,3.9901,125.35,125.32,5.3475]
[1725680465856,13.71971306,125.38,125.32,5.3475]
[1725680468372,3.9901,125.34,125.32,5.3475]
[1725680470171,3.90971306,125.38,125.33,13.8003]
[1725680470476,33.76,125.4,125.34,9.81]
[1725680470778,3.9896,125.36,125.33,13.8003]
[1725680473370,3.96519271,125.37,125.32,1.3569]
[1725680473371,9.81,125.37,125.32,1.3569]
[1725680473573,4.00056144,125.36,125.32,1.3569]
[1725680473871,3.9901,125.34,125.32,1.3569]
[1725680474076,7.93598497,125.34,125.32,1.3569]
[1725680474569,3.9901,125.34,125.32,1.3569]
[1725680474773,3.9901,125.34,125.32,5.3476]
[1725680474973,3.9899,125.35,125.32,5.3476]
[1725680475177,3.9899,125.35,125.33,9.81]
[1725680475864,3.9896,125.36,125.34,9.81]
[1725680476870,3.9893,125.37,125.34,13.8001]
[1725680478777,3.9895,125.36,125.34,13.8001]
[1725680479876,3.9893,125.37,125.34,13.8001]
[1725680482981,3.9895,125.36,125.34,13.8001]
[1725680483672,3.9895,125.36,125.33,3.9903]
[1725680483878,3.9895,125.36,125.33,13.8003]
[1725680485484,3.9895,125.36,125.33,3.9903]
[1725680485677,3.9895,125.36,125.33,13.8003]
[1725680485882,3.9893,125.37,125.34,3.99]
[1725680486379,3.9893,125.37,125.35,9.81]
[1725680486974,3.989,125.38,125.35,13.7997]
[1725680487278,1.3042,125.43,125.35,9.81]
[1725680487579,3.9888,125.39,125.36,3.9894]
[1725680488180,3.9888,125.39,125.36,13.7994]
[1725680505696,3.9888,125.38,125.35,3.9896]
[1725680511400,3.9893,125.37,125.34,13.8001]
[1725680515102,3.9891,125.38,125.35,3.9897]
[1725680515404,3.9891,125.38,125.36,9.81]
[1725680516302,3.9886,125.39,125.37,9.81]
[1725680516495,9.81,125.43,125.37,9.81]
[1725680516695,41.97580525,125.44,125.37,9.81]
[1725680516897,3.9884,125.4,125.37,13.799]
[1725680521810,3.9851594,125.39,125.32,4.076]
[1725680522103,33.76,125.42,125.34,9.81]
[1725680522408,9.81,125.42,125.35,9.81]
[1725680523200,3.9887,125.39,125.36,3.9893]
[1725680528105,8.2156904,125.44,125.37,9.81]
[1725680528305,0.76601492,125.43,125.37,9.81]
[1725680528704,3.9882,125.4,125.37,13.799]
[1725680530711,33.76,125.43,125.32,4.076]
[1725680530907,9.81,125.4,125.33,12.29757569]
[1725680531210,3.97119459,125.39,125.33,9.81]
[1725680531806,3.9891,125.38,125.33,9.81]
[1725680532109,3.97119459,125.39,125.32,4.076]
[1725680532417,33.76,125.4,125.33,9.81]
[1725680532609,3.9893,125.37,125.34,3.9898]
[1725680537416,3.9895,125.36,125.33,13.8003]
[1725680551625,3.90326908,125.38,125.33,9.81]
[1725680551825,33.76,125.39,125.33,9.81]
[1725680552027,3.9898,125.35,125.33,9.81]
[1725680560932,3.9898,125.35,125.32,17.8766]
[1725680567846,8.04403345,125.36,125.33,13.8003]
[1725680568033,155.04794553,125.4,125.33,9.81]
[1725680568237,155.04794553,125.4,125.34,9.81]
[1725680568643,3.9893,125.37,125.34,13.8001]
[1725680580557,33.76,125.36,125.23,7.9872]
[1725680580853,33.76,125.36,125.28,9.81]
[1725680581056,33.76,125.36,125.29,3.88450236]
[1725680581441,3.9906,125.33,125.3,3.9914]
[1725680583157,3.9906,125.33,125.29,5.3805]
[1725680583654,33.76,125.36,125.29,5.3805]
[1725680585562,3.9908,125.32,125.29,5.3805]
[1725680590371,33.76,125.36,125.28,9.81]
[1725680590666,5.20157784,125.38,125.2,1.3843]
[1725680590667,33.76,125.29,125.2,1.3843]
[1725680590859,37.79345486,125.29,125.22,9.81]
[1725680591065,3.9925,125.27,125.22,13.8037]
[1725680591256,37.79345486,125.29,125.22,13.8037]
[1725680591565,3.9929,125.26,125.22,13.8037]
[1725680592064,3.9921,125.28,125.24,3.993]
[1725680593164,3.9923,125.27,125.24,3.993]
[1725680593369,3.9923,125.27,125.24,3.94667937]
[1725680593970,4.03345486,125.29,125.24,3.94667937]
[1725680593971,3.9921,125.28,125.25,9.81]
[1725680594270,3.9921,125.28,125.25,11.1232]
[1725680596082,3.9921,125.28,125.25,15.1161]
[1725680601588,3.9366542,125.3,125.25,15.1161]
[1725680601589,3.9924,125.27,125.25,1.3132]
[1725680608084,7.95009361,125.28,125.25,5.3062]
[1725680608386,3.9921,125.28,125.25,15.1162]
[1725680608584,4.04425027,125.29,125.25,15.1162]
[1725680608781,3.9919,125.29,125.25,15.1162]
[1725680613588,3.9921,125.28,125.25,15.1162]
[1725680617481,3.9918,125.29,125.26,3.9926]
[1725680634401,3.992,125.28,125.25,15.116]
[1725680634593,3.992,125.28,125.25,5.306]
[1725680642700,3.9919,125.29,125.25,5.306]
[1725680642909,3.9919,125.29,125.26,3.9926]
[1725680647413,3.9921,125.28,125.25,5.306]
[1725680648314,3.9925,125.27,125.25,1.3132]
[1725680649612,3.9925,125.27,125.24,3.9931]
[1725680661123,3.9927,125.26,125.23,13.8035]
[1725680661322,3.9927,125.26,125.24,2.49953427]
[1725680661521,3.9927,125.26,125.23,13.8035]
[1725680661725,3.9927,125.26,125.24,2.49953853]
[1725680661918,3.9927,125.26,125.23,13.8035]
[1725680662118,3.9927,125.26,125.24,2.49947318]
[1725680662319,3.9927,125.26,125.23,13.8035]
[1725680662526,3.9927,125.26,125.24,2.49963977]
[1725680662723,3.9927,125.26,125.23,13.8035]
[1725680662925,3.9927,125.26,125.24,2.49968131]
[1725680663224,3.9927,125.26,125.23,13.8035]
[1725680663525,3.9927,125.26,125.24,2.49957998]
[1725680663729,3.96318468,125.3,125.23,9.81]
[1725680663924,21.74853307,125.35,125.29,9.81]
[1725680664220,33.54234298,125.38,125.21,1.3183]
[1725680664221,9.81,125.37,125.3,9.81]
[1725680664420,3.9904,125.34,125.3,13.8012]
[1725680664821,3.9904,125.34,125.31,9.81]
[1725680669727,3.9907,125.33,125.3,9.81]
[1725680669914,9.81,125.36,125.29,4.0932]
[1725680670118,3.9909,125.32,125.29,17.8949]
[1725680673732,3.9909,125.32,125.29,13.9032]
[1725680674724,3.9909,125.32,125.29,17.8949]
[1725680675529,3.9905,125.33,125.29,17.8949]
[1725680679035,3.9905,125.33,125.3,3.9914]
[1725680683124,3.9905,125.33,125.29,17.8947]
[1725680693840,33.79,125.36,125.29,4.0932]
[1725680694037,9.81,125.34,125.29,2.7557]
[1725680694443,3.9906,125.33,125.29,16.5573]
[1725680697543,3.9908,125.32,125.29,16.5573]
[1725680697941,183.55365047,125.36,125.29,2.7557]
[1725680698146,3.9909,125.32,125.29,2.7557]
[1725680698335,3.9909,125.32,125.29,1.3649]
[1725680698940,7.9347518,125.31,125.28,3.9918]
[1725680699241,9.81,125.34,125.28,13.8018]
[1725680699538,3.9908,125.32,125.28,13.8018]
[1725680700343,3.9908,125.32,125.29,3.9916]
[1725680701842,9.81,125.33,125.26,1.3241]
[1725680702048,9.81,125.33,125.27,9.81]
[1725680702346,3.9913,125.31,125.27,13.8022]
[1725680705447,3.9914,125.3,125.27,13.8022]
[1725680705853,3.9914,125.3,125.27,9.81]
[1725680706150,3.9918,125.29,125.26,5.3166]
[1725680706845,8.04545642,125.29,125.26,5.3166]
[1725680707050,8.04545642,125.29,125.26,1.3241]
[1725680707746,3.9918,125.29,125.26,1.3241]
[1725680708146,3.9918,125.29,125.26,11.1341]
[1725680711956,3.9916,125.3,125.27,9.81]
[1725680712547,3.9916,125.3,125.27,13.8021]
[1725680714156,3.9916,125.3,125.27,9.81]
[1725680714457,3.9917,125.29,125.26,15.1265]
[1725680714760,4.01525283,125.31,125.25,1.3985]
[1725680714949,3.9922,125.28,125.25,11.2085]
[1725680715359,3.9922,125.28,125.25,15.2014]
[1725680715757,13.88953201,125.3,125.25,1.3985]
[1725680716857,3.9923,125.28,125.25,1.3985]
[1725680717558,3.9924,125.27,125.25,1.3985]
[1725680718160,3.9926,125.26,125.25,1.3985]
[1725680718366,3.9926,125.26,125.23,3.9934]
[1725680720768,3.9934,125.24,125.11,486.64637938]
[1725680721068,3.9934,125.24,125.2,9.81]
[1725680721258,3.9934,125.24,125.2,11.1925]
[1725680722461,3.9934,125.24,125.21,3.9942]
[1725680732667,3.9934,125.24,125.2,11.1925]
[1725680732872,3.9934,125.24,125.2,15.187]
[1725680733868,9.81,125.26,125.2,1.3825]
[1725680735381,3.9939,125.22,125.2,1.3825]
[1725680744286,3.92633232,125.23,125.2,1.3825]
[1725680744583,9.81,125.21,125.05,7.9981]
[1725680744786,3.9951,125.19,125.15,3.996]
[1725680744980,9.81,125.21,125.15,3.996]
[1725680745281,33.79,125.21,125.12,4.0802]
[1725680745486,33.79,125.21,125.13,13.8066]
[1725680745487,3.9957,125.17,125.13,13.8066]
[1725680745880,3.9957,125.17,125.15,9.81]
[1725680746786,3.9954,125.18,125.15,9.81]
[1725680747881,3.9951,125.19,125.15,9.81]
[1725680748182,3.9951,125.19,125.16,1.3084]
[1725680748789,27.95370925,125.23,125.16,5.3041]
[1725680748790,3.9947,125.2,125.16,5.3041]
[1725680748980,3.9947,125.2,125.16,11.1184]
[1725680749382,3.9947,125.2,125.16,1.3084]
[1725680749581,3.9947,125.2,125.16,5.304]
[1725680749892,3.9947,125.2,125.16,1.3084]
[1725680750288,3.9947,125.2,125.17,3.9955]
[1725680750781,3.9954,125.18,125.15,3.996]
[1725680754881,3.995,125.19,125.16,13.8058]
[1725680755093,9.81,125.22,125.17,11.1445]
[1725680755487,3.9948,125.2,125.17,11.1445]
[1725680756391,3.9948,125.2,125.17,15.14]
[1725680760494,3.9948,125.2,125.17,5.33]
[1725680760686,9.81,125.21,125.17,1.3345]
[1725680761393,3.995,125.19,125.17,1.3345]
[1725680762493,3.9948,125.2,125.17,5.33]
[1725680765299,155.70328419,125.23,125.19,9.81]
[1725680765502,9.81,125.25,125.19,9.81]
[1725680765902,9.81,125.24,125.2,3.9944]
[1725680766907,9.81,125.22,125.17,1.3345]
[1725680767700,1.351,125.28,125.18,3.995]
[1725680767701,3.9945,125.21,125.18,3.995]
[1725680767900,13.8045,125.21,125.18,3.995]
[1725680768108,13.85363374,125.21,125.17,1.3345]
[1725680768513,3.9946,125.2,125.17,5.3298]
[1725680769100,3.9946,125.2,125.17,1.3345]
[1725680770913,1.351,125.28,125.17,1.3345]
[1725680771212,1.351,125.28,125.18,9.81]
[1725680771213,9.81,125.24,125.18,9.81]
[1725680771504,9.81,125.24,125.18,11.1044]
[1725680771708,1.351,125.28,125.19,9.81]
[1725680771903,9.81,125.26,125.19,9.81]
[1725680772409,9.81,125.26,125.21,3.9941]
[1725680772410,3.9935,125.24,125.21,3.9941]
[1725680779715,9.81,125.27,125.2,9.81]
[1725680779918,9.81,125.28,125.21,11.1698]
[1725680781414,3.9928,125.26,125.23,3.9934]
[1725680782318,4.07953201,125.3,125.23,9.81]
[1725680782517,9.81,125.29,125.23,9.81]
[1725680782819,13.78164081,125.29,125.23,9.81]
[1725680783211,13.78164081,125.29,125.25,3.9929]
[1725680783614,3.9924,125.27,125.24,3.9931]
[1725680783811,9.81,125.27,125.22,1.3268]
[1725680784007,9.81,125.25,125.21,1.3598]
[1725680784209,13.8032,125.25,125.22,3.9939]
[1725680785521,3.9933,125.24,125.22,3.9939]
[1725680788220,9.81,125.24,125.21,1.3598]
[1725680788421,9.81,125.24,125.19,1.3268]
[1725680789021,3.9941,125.22,125.19,5.3217]
[1725680789826,3.9937,125.23,125.2,3.9945]
[1725680790012,9.81,125.25,125.2,3.9945]
[1725680791323,3.9935,125.24,125.2,3.9945]
[1725680795524,3.9936,125.23,125.2,3.9945]
[1725680795828,3.9936,125.23,125.19,16.5475]
[1725680796028,3.9936,125.23,125.19,12.5528]
[1725680797425,3.9936,125.23,125.2,3.9945]
[1725680799723,9.81,125.24,125.19,1.416]
[1725680800025,9.81,125.22,125.15,11.1948]
[1725680800232,3.9949,125.2,125.16,6.49798201]
[1725680800529,4.02141444,125.21,125.16,3.9956]
[1725680801137,3.995,125.19,125.15,3.996]
[1725680801426,9.81,125.21,125.15,3.996]
[1725680801927,3.9951,125.19,125.15,3.996]
[1725680802326,3.9947,125.2,125.16,9.81]
[1725680802630,12.1172,125.24,125.18,9.81]
[1725680803228,3.9944,125.21,125.18,9.81]
[1725680805132,3.9944,125.21,125.18,13.8052]
[1725680806027,3.90738087,125.22,125.19,9.81]
[1725680806620,135.83016605,125.25,125.19,9.81]
[1725680807428,3.9936,125.23,125.2,3.9944]
[1725680809738,3.9936,125.23,125.21,3.9942]
[1725680810530,3.9936,125.23,125.2,3.9944]
[1725680811635,3.9934,125.24,125.21,3.9942]
[1725680814136,3.9937,125.23,125.21,3.9942]
[1725680814537,3.9937,125.23,125.2,5.3924]
[1725680826554,3.994,125.22,125.2,5.3924]
[1725680829649,3.994,125.22,125.19,3.9948]
[1725680829953,9.81,125.23,125.16,11.1074]
[1725680830155,3.91842096,125.22,125.17,2.50209712]
[1725680830457,3.9947,125.2,125.17,3.9954]
[1725680831146,135.83016605,125.25,125.19,9.81]
[1725680831346,135.83016605,125.25,125.2,9.81]
[1725680832047,3.9935,125.24,125.21,3.9942]
[1725680834352,3.9935,125.24,125.2,13.8044]
[1725680835155,9.81,125.31,125.23,9.81]
[1725680835351,9.81,125.31,125.17,1.3013]
[1725680835352,580.81,125.32,125.25,9.81]
[1725680835546,507.85981297,125.34,125.26,9.81]
[1725680835754,16.51657072,125.33,125.26,9.81]
[1725680836059,9.81,125.34,125.28,9.81]
[1725680836445,3.9907,125.32,125.28,13.8018]
[1725680837358,3.9906,125.33,125.28,9.81]
[1725680837653,3.9906,125.33,125.29,9.81]
[1725680837854,3.9906,125.33,125.29,13.8015]
[1725680839360,9.81,125.34,125.28,9.81]
[1725680839553,9.81,125.33,125.25,2.7428]
[1725680839752,9.81,125.33,125.26,9.81]
[1725680840154,3.9913,125.31,125.27,3.9921]
[1725680840958,13.75035799,125.31,125.25,12.5528]
[1725680841461,3.9921,125.28,125.24,11.1999]
[1725680841863,3.9921,125.28,125.24,15.1929]
[1725680843060,3.9921,125.28,125.25,13.803]
[1725680843359,2.3896,125.35,125.24,1.3899]
[1725680843360,9.81,125.33,125.27,9.81]
[1725680844162,3.9916,125.3,125.27,9.81]
[1725680844964,3.9917,125.29,125.27,9.81]
[1725680846057,3.9917,125.29,125.25,3.9928]
[1725680846261,3.9917,125.29,125.26,9.81]
[1725680846651,3.9917,125.29,125.26,13.8026]
[1725680848859,3.9917,125.29,125.25,3.9928]
[1725680849161,3.9921,125.28,125.25,13.8028]
[1725680850163,3.9918,125.29,125.25,13.8028]
[1725680857067,3.992,125.28,125.25,13.8028]
[1725680857762,3.9918,125.29,125.25,13.8028]
[1725680862271,3.992,125.28,125.24,5.383]
[1725680862471,13.84634027,125.31,125.24,15.193]
[1725680863367,3.9922,125.28,125.25,3.993]
[1725680868571,3.9918,125.29,125.26,9.81]
[1725680869778,3.9918,125.29,125.26,13.8026]
[1725680869985,2.3896,125.35,125.28,9.81]
[1725680870266,1.4265,125.35,125.3,9.81]
[1725680870469,3.9908,125.32,125.3,9.81]
[1725680872474,3.9906,125.33,125.3,9.81]
[1725680873372,3.9907,125.32,125.3,9.81]
[1725680875575,3.9907,125.32,125.29,3.9915]
[1725680875576,3.9907,125.32,125.29,13.8015]
[1725680875774,3.9907,125.32,125.29,3.9915]
[1725680877166,3.9907,125.32,125.29,15.1339]
[1725680880679,3.9906,125.33,125.3,3.9914]
[1725680880980,3.9906,125.33,125.31,9.81]
[1725680882076,44.60427403,125.38,125.32,9.81]
[1725680882279,0.76324937,125.37,125.32,9.81]
[1725680882674,3.9896,125.36,125.33,3.9903]
[1725680883170,180.19020365,125.39,125.32,9.81]
[1725680883374,0.76318248,125.38,125.32,9.81]
[1725680883574,4.78098779,125.38,125.32,13.8005]
[1725680883770,0.76318248,125.37,125.34,9.81]
[1725680883972,4.05340849,125.37,125.34,9.81]
[1725680884173,3.989,125.38,125.35,9.81]
[1725680884371,146.40020365,125.39,125.36,9.81]
[1725680884781,146.40020365,125.39,125.35,1.4186]
[1725680885379,3.989,125.38,125.35,15.2184]
[1725680887280,3.9895,125.36,125.3,2.7991]
[1725680887477,3.9895,125.36,125.33,9.81]
[1725680889985,146.40020365,125.39,125.33,9.81]
[1725680890590,180.19020365,125.39,125.31,1.379]
[1725680890790,180.19020365,125.39,125.31,11.189]
[1725680891291,0.76287451,125.38,125.31,11.189]
[1725680892390,3.9903,125.34,125.31,15.18]
[1725680892583,156.21020365,125.39,125.33,9.81]
[1725680892782,180.19020365,125.39,125.33,9.81]
[1725680892995,0.76289679,125.38,125.33,9.81]
[1725680893395,3.9899,125.35,125.33,9.81]
[1725680899803,180.19020365,125.39,125.33,9.81]
[1725680900004,180.19020365,125.39,125.32,9.81]
[1725680901297,3.9901,125.34,125.32,9.81]
[1725680903704,3.9901,125.34,125.31,5.3698]
[1725680904003,3.9901,125.34,125.32,9.81]
[1725680913206,3.9899,125.35,125.33,9.81]
[1725680913511,146.40020365,125.39,125.34,9.81]
[1725680914009,3.9896,125.36,125.34,9.81]
[1725680915913,3.9893,125.37,125.34,13.8001]
[1725680916114,3.9893,125.37,125.36,9.81]
[1725680920509,146.40020365,125.39,125.36,9.81]
[1725680920709,146.40020365,125.39,125.37,9.81]
[1725680921418,3.9645626,125.42,125.37,9.81]
[1725680921625,3.9883,125.4,125.37,13.799]
[1725680922525,13.74103902,125.42,125.36,9.81]
[1725680922717,33.79,125.42,125.36,9.81]
[1725680922918,34.55261441,125.41,125.35,9.81]
[1725680923126,38.53426419,125.41,125.35,9.81]
[1725680923620,3.9893,125.37,125.35,9.81]
[1725680927125,3.989,125.38,125.36,9.81]
[1725680929717,35.1923,125.44,125.37,9.81]
[1725680930028,33.79,125.47,125.41,9.81]
[1725680930217,3.9874,125.43,125.41,9.81]
[1725680931021,26.2436,125.49,125.42,9.81]
[1725680931220,0.76215494,125.48,125.43,9.81]
[1725680932027,3.9866,125.46,125.43,9.81]